bitfinex-derivatives/quotes_ETHF0:USTF0_20251117
["timestamp","ask_amount","ask_price","bid_price","bid_amount"]
[1763417963954,0.2609,3013.8,3013.4,0.00334024]
[1763417964153,0.4163,3013.5,3012.5,0.288]
[1763417964455,0.1554,3013.5,3012.5,0.288]
[1763417964649,0.1554,3014.0,3012.5,0.11]
[1763417965155,0.1554,3014.0,3012.5,0.11283615]
[1763417965355,0.1554,3014.0,3012.5,0.00283615]
[1763417965857,0.1554,3014.0,3012.5,0.42506352]
[1763417967250,0.1554,3014.0,3012.6,0.236]
[1763417967857,0.9220882,3015.2,3012.7,13.1289298]
[1763417968055,2.92959458,3015.5,3013.4,1.75301642]
[1763417968056,1.18282359,3015.5,3013.4,1.75301642]
[1763417968246,1.18282359,3015.5,3012.7,11.51763364]
[1763417968247,1.77423539,3017.7,3014.2,3.319]
[1763417968551,0.1524,3018.0,3015.2,3.319]
[1763417968868,0.1524,3018.0,3016.5,0.87446744]
[1763417969053,0.00312596,3017.0,3016.8,0.87446744]
[1763417969252,0.00312596,3017.0,3016.5,0.00271213]
[1763417969253,0.00312596,3017.0,3016.7,0.87446744]
[1763417969554,0.00312596,3017.0,3016.6,4.209]
[1763417969756,0.00312596,3017.0,3016.6,5.08346744]
[1763417969952,0.00497265,3017.1,3016.8,0.87446744]
[1763417970148,0.1524,3018.0,3016.9,3.3144]
[1763417970347,0.1524,3018.0,3017.0,0.87312728]
[1763417970550,0.1524,3018.0,3016.5,0.87583941]
[1763417970760,0.1524,3018.0,3016.5,9.01883941]
[1763417970958,0.1558513,3017.5,3016.5,0.00271213]
[1763417971159,0.00497265,3017.3,3016.5,0.87583941]
[1763417971458,0.00497265,3017.3,3016.5,0.00271213]
[1763417971961,0.00497265,3017.3,3016.5,1.89771213]
[1763417972763,0.00497265,3017.3,3016.5,0.00271213]
[1763417972959,0.00497265,3017.3,3016.6,3.167]
[1763417973855,0.00497265,3017.3,3016.7,0.87312728]
[1763417974161,0.00497265,3017.3,3016.8,0.87312728]
[1763417974461,0.00497265,3017.3,3016.7,0.87312728]
[1763417974952,0.00497265,3017.3,3016.8,0.87312728]
[1763417975151,0.00497265,3017.3,3016.9,0.87312728]
[1763417975351,0.0034513,3017.5,3016.9,0.87312728]
[1763417975552,0.1524,3018.0,3016.9,0.87312728]
[1763417975553,0.1524,3018.0,3017.1,0.87312728]
[1763417975762,0.1524,3018.0,3017.3,0.87312728]
[1763417976259,0.1524,3018.0,3017.4,3.3136]
[1763417976457,0.00497265,3018.0,3017.4,3.31857265]
[1763417976660,0.0346,3018.7,3017.8,0.87312728]
[1763417976857,0.1524,3018.0,3017.7,9.01412728]
[1763417977054,0.1524,3018.0,3017.7,8.141]
[1763417977252,0.1524,3018.0,3017.4,0.00497265]
[1763417977450,0.1524,3018.0,3017.4,7.32997265]
[1763417977666,0.16051729,3018.0,3017.4,7.32997265]
[1763417978863,0.00811729,3018.0,3017.5,4.18672728]
[1763417979161,0.00811729,3018.0,3017.6,0.87312728]
[1763417979358,0.00811729,3018.0,3017.7,8.143]
[1763417979554,0.00811729,3018.0,3017.7,11.4566]
[1763417979949,0.00811729,3018.0,3017.9,0.87312728]
[1763417980158,0.00811729,3018.0,3017.9,4.18592728]
[1763417980359,0.00811729,3018.0,3017.9,17.4548]
[1763417980760,0.00811729,3018.0,3017.9,11.4538]
[1763417981666,0.00811729,3018.0,3017.9,3.3128]
[1763417981862,0.00811729,3018.0,3017.6,0.87312728]
[1763417982061,0.16051729,3018.0,3017.7,8.139]
[1763417982366,0.00811729,3018.0,3017.7,8.139]
[1763417984465,0.00811729,3018.0,3017.8,8.139]
[1763417984671,0.0346,3018.7,3017.8,8.139]
[1763417984858,0.1524,3018.6,3017.8,9.01212728]
[1763417985061,0.1524,3018.6,3017.9,8.137]
[1763417985254,0.1524,3018.6,3017.4,1.75798907]
[1763417985255,0.1524,3018.6,3018.0,8.138]
[1763417985670,0.15990399,3018.6,3018.0,8.138]
[1763417986169,0.15990399,3018.6,3017.7,40.8]
[1763417986473,0.15990399,3018.6,3017.8,8.137]
[1763417986771,0.15990399,3018.6,3017.7,40.8]
[1763417986965,0.15990399,3018.6,3017.8,8.136]
[1763417987171,0.15990399,3018.6,3017.4,0.87809993]
[1763417987369,0.15990399,3018.6,3017.9,8.137]
[1763417988063,0.15990399,3018.6,3018.0,8.136]
[1763417988263,0.15990399,3018.6,3018.1,8.136]
[1763417989365,0.00750399,3018.6,3018.1,8.136]
[1763417990375,0.00750399,3018.6,3018.2,8.134]
[1763417990673,0.00750399,3018.6,3018.3,8.134]
[1763417992668,0.00750399,3018.6,3018.4,3.3128]
[1763417992867,0.00750399,3018.6,3018.3,8.134]
[1763417993576,0.00750399,3018.6,3018.3,11.4468]
[1763417994471,0.00750399,3018.6,3018.4,3.3128]
[1763417994678,0.0346,3018.7,3018.5,4.47696971]
[1763417994870,0.1524,3019.8,3018.5,4.47696971]
[1763417995070,0.1524,3019.8,3018.7,0.86627068]
[1763417995270,0.1524,3019.8,3018.9,0.86627068]
[1763417995473,0.1524,3019.8,3019.0,8.13]
[1763417995771,0.0033151,3019.7,3019.1,0.00497265]
[1763417996071,0.0033151,3019.7,3017.8,1.16416971]
[1763417996072,0.2512,3018.1,3017.8,1.16416971]
[1763417996282,0.1524,3018.5,3017.2,14.25639693]
[1763417996283,0.1524,3017.5,3017.2,14.25639693]
[1763417996571,0.1524,3018.0,3017.3,8.132]
[1763417996763,0.1524,3018.0,3017.6,1.1622557]
[1763417996963,0.1524,3018.0,3017.5,1.1622557]
[1763417997179,0.15501631,3018.0,3017.5,1.16628755]
[1763417997477,0.15501631,3018.0,3017.9,1.1622557]
[1763417997681,0.15501631,3018.0,3017.8,1.74338355]
[1763417998381,0.15501631,3018.0,3017.7,2.32039693]
[1763417998972,0.00497265,3018.1,3017.6,11.05374532]
[1763417999172,0.00497265,3018.1,3018.0,2.33672155]
[1763417999574,0.00497265,3018.1,3018.0,10.47072155]
[1763417999877,0.00778621,3018.1,3018.0,10.47072155]
[1763418000179,0.00778621,3018.1,3018.0,2.33672155]
[1763418000377,0.2228,3018.0,3017.9,2.33672155]
[1763418000581,0.2228,3018.0,3017.9,8.134]
[1763418000778,0.2228,3018.0,3017.7,2.33672155]
[1763418000981,0.2228,3018.0,3017.8,8.134]
[1763418001376,0.2228,3018.0,3017.8,10.47072155]
[1763418001979,0.2228,3018.0,3017.9,2.33672155]
[1763418002177,0.00778621,3018.1,3017.8,10.47072155]
[1763418002485,0.00778621,3018.1,3017.9,2.33672155]
[1763418003280,0.00778621,3018.1,3018.0,2.33672155]
[1763418003677,0.00778621,3018.1,3018.0,10.46972155]
[1763418004278,0.00778621,3018.1,3018.0,8.133]
[1763418004788,0.1524,3019.5,3018.0,8.133]
[1763418005082,0.3827,3018.8,3018.7,1.17102363]
[1763418005383,0.3827,3018.8,3018.7,9.30202363]
[1763418005582,0.3827,3018.8,3018.7,1.17102363]
[1763418005779,0.3827,3018.8,3018.7,9.30202363]
[1763418005780,0.38651385,3018.8,3018.7,9.30202363]
[1763418006384,0.38651385,3018.8,3018.7,9.88753545]
[1763418006779,0.00381385,3018.8,3018.7,8.131]
[1763418006980,0.00381385,3018.8,3018.5,2.91874532]
[1763418007284,0.1524,3019.5,3018.7,2.91874532]
[1763418007480,0.1524,3019.5,3019.2,2.34174975]
[1763418007779,0.1524,3019.5,3019.3,10.47174975]
[1763418008086,0.1524,3019.5,3019.3,2.34174975]
[1763418008284,0.1553703,3019.5,3019.4,8.129]
[1763418009282,0.1553703,3019.5,3019.2,2.34174975]
[1763418009484,0.5380703,3019.5,3019.4,8.129]
[1763418009680,0.3827,3019.3,3019.2,1.75639477]
[1763418009984,0.1553703,3019.5,3018.6,2.34174975]
[1763418009985,0.3827,3018.8,3018.6,2.34174975]
[1763418010185,0.3827,3018.7,3018.6,7.937]
[1763418010384,0.3827,3018.7,3018.2,2.34174975]
[1763418010385,0.3827,3018.7,3018.1,2.34174975]
[1763418010584,0.3827,3018.7,3018.2,8.127]
[1763418010784,0.2228,3019.0,3018.0,0.1829]
[1763418010974,0.1553703,3019.5,3018.9,0.4053]
[1763418011179,0.16034295,3019.5,3019.0,4.508]
[1763418011987,0.16034295,3019.5,3018.9,0.00497265]
[1763418012183,0.16034295,3019.5,3019.0,8.134]
[1763418014177,0.16034295,3019.5,3019.1,8.132]
[1763418014578,0.16034295,3019.5,3018.9,0.00497265]
[1763418014579,0.6055,3019.0,3018.9,0.00497265]
[1763418014787,0.2075793,3019.0,3018.9,8.13597265]
[1763418015180,6.0,3018.9,3018.3,1.12365608]
[1763418015378,1.18365476,3019.4,3018.0,0.2195]
[1763418016085,1.18365476,3019.3,3018.0,0.2195]
[1763418016281,1.18365476,3019.0,3017.5,0.22353185]
[1763418016587,1.18365476,3018.7,3017.5,0.22353185]
[1763418016982,7.18365476,3018.7,3016.5,0.2195]
[1763418017187,1.18365476,3018.2,3016.5,0.2195]
[1763418017387,1.18365476,3018.3,3016.5,0.2195]
[1763418017686,1.18365476,3018.2,3016.5,0.2195]
[1763418017892,1.18365476,3018.1,3016.5,0.2195]
[1763418018090,1.18365476,3018.1,3016.5,0.22362927]
[1763418018291,1.18365476,3017.9,3015.0,0.2195]
[1763418018493,0.00497265,3017.6,3015.6,0.3225]
[1763418018685,1.18862741,3017.6,3015.6,0.3225]
[1763418019085,1.18365476,3017.5,3015.6,0.3225]
[1763418019282,0.00497265,3017.6,3015.6,0.32493139]
[1763418019487,0.00497265,3017.6,3016.3,0.00497265]
[1763418019893,1.18862741,3017.6,3016.3,0.00497265]
[1763418020194,0.00497265,3017.6,3016.3,0.00497265]
[1763418025788,0.314,3017.5,3015.6,0.22193139]
[1763418026793,0.314,3017.5,3016.2,0.0033151]
[1763418026999,0.314,3017.5,3016.2,0.3641151]
[1763418028196,0.314,3017.5,3016.2,0.0033151]
[1763418028491,0.314,3017.5,3016.2,1.51e-05]
[1763418028492,10.352,3017.4,3016.2,1.51e-05]
[1763418028894,0.314,3017.5,3016.2,1.51e-05]
[1763418029289,0.314,3017.5,3015.6,0.00243139]
[1763418031699,0.00497265,3017.6,3015.6,0.00243139]
[1763418039905,4.06063424,3017.6,3015.6,0.00243139]
[1763418040111,0.73666159,3017.5,3015.6,0.00243139]
[1763418040798,11.08866159,3017.4,3015.6,0.00243139]
[1763418041006,0.73666159,3017.3,3015.6,0.00243139]
[1763418041202,0.73910149,3017.3,3015.6,0.00243139]
[1763418041597,3.888,3017.2,3015.6,0.00243139]
[1763418042308,3.888,3017.2,3017.1,0.5767]
[1763418042511,3.888,3017.2,3017.0,0.3608]
[1763418043013,0.0024399,3017.3,3017.0,0.3608]
[1763418044311,3.8904399,3017.3,3017.0,0.3608]
[1763418044818,3.8904399,3017.3,3017.0,0.22312581]
[1763418045013,0.74164561,3017.2,3017.0,0.22312581]
[1763418045308,0.74164561,3017.2,3016.5,0.3608]
[1763418045506,1.18365476,3017.1,3016.5,0.3608]
[1763418045710,0.00497265,3017.6,3017.5,0.9375]
[1763418046110,0.00497265,3017.6,3017.5,0.3608]
[1763418046818,0.00921711,3017.6,3017.5,0.3608]
[1763418048017,0.00921711,3017.6,3017.5,0.9375]
[1763418049111,0.00921711,3017.6,3017.5,6.9375]
[1763418049520,2.70070973,3019.7,3017.5,6.9375]
[1763418049521,2.35314659,3019.4,3017.5,6.9375]
[1763418049828,0.1824,3019.5,3017.5,0.9375]
[1763418050415,0.1852024,3019.5,3017.5,0.9375]
[1763418050615,0.00497265,3018.8,3018.2,0.00497265]
[1763418050911,0.00497265,3018.8,3018.7,0.5767]
[1763418051415,0.3648,3018.6,3018.2,0.00757227]
[1763418051615,0.3648,3018.6,3018.5,0.3608]
[1763418051818,0.00497265,3018.8,3018.5,0.3608]
[1763418054325,0.3648,3018.3,3018.2,0.00757227]
[1763418056020,0.5667,3017.6,3017.0,0.3608]
[1763418057108,0.5667,3017.6,3017.0,0.36319602]
[1763418058530,0.5731,3017.1,3017.0,0.36319602]
[1763418058726,0.00293681,3017.1,3017.0,0.96619602]
[1763418061029,0.00497265,3018.8,3017.0,6.96619602]
[1763418061230,0.00497265,3018.8,3017.0,0.96619602]
[1763418061522,0.00497265,3018.8,3017.1,0.45]
[1763418062030,0.0080187,3018.8,3017.1,0.45]
[1763418063429,0.0080187,3018.8,3017.0,0.36319602]
[1763418063921,5.68016529,3018.8,3017.0,0.36319602]
[1763418064323,2.35314659,3018.7,3017.0,0.36319602]
[1763418065624,0.576,3017.1,3017.0,0.00239602]
[1763418069835,1.77731626,3017.9,3017.8,0.603]
[1763418070035,0.576,3017.1,3017.0,0.35819602]
[1763418070531,0.1824,3018.0,3017.0,0.35819602]
[1763418071235,1.77731626,3018.1,3017.0,0.35819602]
[1763418071421,1.77731626,3018.3,3017.0,0.35819602]
[1763418072223,1.77731626,3018.4,3017.0,0.35819602]
[1763418072427,2.59731626,3018.6,3017.0,0.35819602]
[1763418073733,1.77731626,3018.7,3017.0,0.35819602]
[1763418073934,0.0080187,3018.8,3017.0,0.35819602]
[1763418074123,0.0080187,3018.8,3017.1,1.528]
[1763418075527,0.0080187,3018.8,3017.2,2.24]
[1763418075726,1.19522977,3018.8,3017.2,2.24]
[1763418076327,0.0080187,3018.8,3017.2,2.24]
[1763418076732,0.0080187,3018.8,3017.2,3.41461889]
[1763418077729,0.0080187,3018.8,3017.2,1.17461889]
[1763418077929,0.0080187,3018.8,3017.3,2.567]
[1763418078338,0.0080187,3018.8,3017.5,0.3433]
[1763418081036,0.7512732,3018.8,3017.5,0.3433]
[1763418081235,0.7432545,3018.7,3017.5,0.3433]
[1763418081437,0.0080187,3018.8,3018.5,0.9292]
[1763418081438,0.7432545,3018.6,3018.5,0.9292]
[1763418081945,0.0080187,3018.8,3018.7,0.5859]
[1763418084141,0.4590187,3018.8,3018.5,0.3433]
[1763418084330,0.74342069,3018.7,3018.5,0.3433]
[1763418084532,0.0080187,3018.8,3018.5,0.3433]
[1763418085435,0.451,3018.6,3018.0,0.3433]
[1763418085740,0.74376553,3018.5,3018.0,0.3433]
[1763418086040,0.74376553,3018.4,3018.0,0.3433]
[1763418086239,0.74376553,3018.3,3018.0,0.3433]
[1763418086438,1.19522977,3018.8,3018.0,0.3433]
[1763418086934,1.19522977,3018.8,3018.5,0.3199]
[1763418087130,0.40976459,3019.0,3018.9,0.5702]
[1763418087327,7.71150372,3021.1,3018.5,0.3199]
[1763418087328,0.40976459,3019.8,3019.1,0.5702]
[1763418087540,1.95971626,3020.0,3019.1,0.5702]
[1763418087737,1.77731626,3020.0,3019.1,0.5702]
[1763418088041,0.74343521,3019.9,3019.8,0.5702]
[1763418088232,0.00497265,3019.9,3019.8,0.57383449]
[1763418089041,0.00311172,3020.0,3019.8,0.57383449]
[1763418089042,0.00311172,3020.0,3019.9,0.5702]
[1763418089430,1.77731626,3021.1,3020.3,0.5702]
[1763418089632,2.35314659,3021.4,3020.0,0.3199]
[1763418089633,2.35314659,3022.6,3021.0,0.3199]
[1763418089849,2.59964659,3023.0,3021.0,0.3199]
[1763418090042,0.2465,3023.0,3021.0,0.3199]
[1763418090242,0.004964,3022.1,3022.0,0.5702]
[1763418090537,0.004964,3022.1,3022.0,0.57408828]
[1763418090538,0.00799065,3022.1,3022.0,0.57408828]
[1763418090734,0.2465,3023.0,3022.0,0.57408828]
[1763418090735,0.2465,3023.5,3022.0,0.57408828]
[1763418090940,0.0346,3023.7,3022.0,0.57408828]
[1763418090941,0.0346,3023.7,3022.2,0.3199]
[1763418091543,0.0851,3024.6,3023.6,0.5702]
[1763418091740,0.08898684,3024.6,3023.6,0.5702]
[1763418091945,0.004964,3024.4,3023.8,0.004964]
[1763418093644,0.004964,3024.4,3024.3,0.5702]
[1763418093842,0.004964,3024.4,3024.3,0.57340035]
[1763418097349,0.00388684,3024.6,3024.5,0.5702]
[1763418098144,0.00388684,3024.6,3024.3,0.00320035]
[1763418099856,0.00388684,3024.6,3024.5,0.5702]
[1763418104346,0.00388684,3024.6,3024.5,0.8901]
[1763418104551,0.016,3025.6,3024.5,0.8901]
[1763418104552,0.5515,3025.6,3025.0,0.3199]
[1763418104943,0.09064158,3025.8,3025.0,0.3199]
[1763418105339,0.09064158,3025.8,3025.7,0.5702]
[1763418105543,0.09457678,3025.8,3025.7,0.5702]
[1763418106147,0.004964,3026.1,3025.5,0.3199]
[1763418106148,0.004964,3026.1,3026.0,0.5702]
[1763418106651,0.1894,3028.0,3026.0,0.5702]
[1763418106852,0.05751705,3027.8,3026.0,0.5702]
[1763418107042,0.14551705,3027.8,3026.0,0.5702]
[1763418107238,0.09199209,3027.8,3026.0,0.5702]
[1763418107644,0.00329275,3027.2,3026.0,0.5702]
[1763418107953,0.00329275,3027.2,3026.1,0.267]
[1763418108253,0.00329275,3027.2,3025.7,0.276]
[1763418108551,0.00329275,3027.2,3025.5,0.3199]
[1763418109755,0.00329275,3027.2,3025.6,0.153]
[1763418110655,0.00329275,3027.2,3027.1,0.5702]
[1763418110861,0.00399209,3027.8,3027.7,0.5702]
[1763418111250,0.044,3029.8,3027.7,0.5702]
[1763418111251,0.05748023,3029.6,3027.7,0.5702]
[1763418111955,0.044,3029.8,3027.9,0.00495557]
[1763418112149,0.03751334,3028.7,3028.6,0.5702]
[1763418112851,0.03751334,3028.7,3028.2,0.3199]
[1763418114543,0.03751334,3028.7,3027.9,0.00495557]
[1763418115055,0.5515,3028.0,3027.9,0.00495557]
[1763418116658,0.03751334,3028.7,3027.9,0.00495557]
[1763418118558,0.5631,3028.0,3027.9,0.00495557]
[1763418120760,0.03751334,3028.7,3027.9,0.00495557]
[1763418121159,0.5631,3028.0,3027.9,0.00495557]
[1763418121353,0.5631,3028.0,3026.5,0.142]
[1763418121754,0.5631,3028.0,3026.5,0.422]
[1763418122258,0.00495557,3027.9,3027.2,0.00495557]
[1763418125066,0.52565478,3027.6,3027.2,0.00495557]
[1763418125359,0.5631,3027.2,3026.4,0.2949]
[1763418125663,67.5631,3027.2,3026.4,0.2949]
[1763418126065,67.5631,3027.2,3025.8,0.3199]
[1763418126265,0.52565478,3026.8,3025.4,0.548]
[1763418126469,66.99258097,3025.4,3025.3,0.5701]
[1763418127265,67.51823575,3025.4,3025.3,0.5701]
[1763418127463,0.52565478,3025.4,3025.3,0.5701]
[1763418127666,66.99258097,3025.3,3025.0,0.00495557]
[1763418127856,0.5631,3025.1,3023.4,0.3397]
[1763418128166,0.5631,3025.1,3023.4,0.34377654]
[1763418128364,0.52565478,3024.3,3023.4,0.34377654]
[1763418128557,0.52565478,3024.3,3023.2,0.26185156]
[1763418128558,66.64880443,3023.4,3023.2,0.26185156]
[1763418128866,57.58790877,3023.4,3023.0,0.00495557]
[1763418129268,0.52565478,3023.2,3023.0,0.00495557]
[1763418129567,0.52847167,3023.2,3023.1,9.3072]
[1763418129756,51.58790877,3023.1,3023.0,0.00873374]
[1763418129957,51.58790877,3023.1,3023.0,8.13273374]
[1763418130358,52.11356355,3023.1,3023.0,8.13273374]
[1763418130557,52.11356355,3023.1,3023.0,11.43993374]
[1763418130766,48.27197503,3023.0,3021.9,52.708]
[1763418131066,48.27197503,3023.0,3021.9,40.8]
[1763418131360,48.27197503,3023.0,3022.0,20.032]
[1763418131361,0.52565478,3022.5,3022.0,20.032]
[1763418131753,3.83285478,3022.5,3022.0,20.03475096]
[1763418131957,17.38950407,3022.0,3021.9,41.06869955]
[1763418132159,17.38950407,3022.0,3021.9,61.10169955]
[1763418132160,15.34418566,3022.0,3021.9,61.10169955]
[1763418132462,15.86984044,3022.0,3021.9,49.19369955]
[1763418132663,0.00281689,3023.2,3021.9,55.19369955]
[1763418132971,0.00281689,3023.2,3022.0,3.308]
[1763418133363,0.00281689,3023.2,3022.1,3.308]
[1763418133573,0.00281689,3023.2,3022.2,20.036]
[1763418133865,0.00281689,3023.2,3022.3,9.20969178]
[1763418134264,0.00495557,3023.6,3022.6,4.48369576]
[1763418134458,0.3162,3025.2,3023.1,40.8]
[1763418134662,12.0,3025.1,3023.2,20.038]
[1763418134970,12.0,3025.2,3023.2,28.94093754]
[1763418135160,12.0,3025.2,3023.2,25.63453754]
[1763418135360,0.00495557,3024.5,3023.9,0.00495557]
[1763418135562,0.00495557,3024.5,3024.0,8.129]
[1763418135768,0.00991114,3024.5,3024.0,8.129]
[1763418136559,0.0025891,3025.2,3024.0,14.129]
[1763418136861,0.0025891,3025.2,3024.1,3.3056]
[1763418137057,0.0025891,3025.2,3024.2,3.3056]
[1763418137472,0.0025891,3025.2,3024.3,20.038]
[1763418137667,0.00495557,3025.1,3024.3,20.038]
[1763418137866,0.00495557,3025.1,3024.4,3.3056]
[1763418138373,0.00495557,3025.1,3024.5,3.3056]
[1763418138566,0.00495557,3025.1,3024.6,8.127]
[1763418138964,0.00495557,3025.1,3024.7,3.3056]
[1763418139764,24.8911,3025.0,3024.2,11.91]
[1763418139971,12.0,3025.0,3024.2,11.91]
[1763418140166,12.8911,3024.7,3024.1,0.00357333]
[1763418140370,12.8911,3024.7,3024.2,8.125]
[1763418140571,12.0,3024.6,3024.2,8.125]
[1763418140873,12.8911,3024.7,3024.2,8.125]
[1763418141270,0.00495557,3025.1,3024.2,3.3056]
[1763418141470,0.9819,3024.6,3024.1,0.00357333]
[1763418141769,12.0,3024.5,3024.1,0.00357333]
[1763418141974,12.8911,3024.3,3024.1,0.00357333]
[1763418142476,12.0,3024.2,3024.1,0.00357333]
[1763418142773,0.54106557,3025.1,3024.2,3.3064]
[1763418142974,12.8911,3024.7,3024.1,0.00357333]
[1763418143174,12.8911,3024.7,3024.1,3.30997333]
[1763418143368,12.0,3024.6,3024.2,3.3064]
[1763418143576,12.8911,3024.9,3024.1,0.00357333]
[1763418143770,0.54606114,3024.9,3024.1,0.00357333]
[1763418143981,13.873,3024.6,3024.2,0.004]
[1763418144276,13.873,3024.6,3024.3,7.451]
[1763418144482,12.8911,3024.4,3024.1,0.00357333]
[1763418144671,12.8911,3024.4,3024.2,8.124]
[1763418144873,12.0,3024.3,3024.1,0.00357333]
[1763418145173,12.0,3024.3,3024.2,8.124]
[1763418145373,12.00991114,3024.3,3024.2,8.124]
[1763418145576,12.0,3024.3,3024.2,8.124]
[1763418145773,24.8911,3024.3,3024.1,0.00357333]
[1763418145976,12.0,3024.2,3024.1,0.00357333]
[1763418147579,24.8911,3024.2,3024.1,0.00357333]
[1763418147783,2.97352,3024.0,3022.3,1.16469576]
[1763418147986,12.8911,3023.4,3022.4,16.011]
[1763418148178,13.8375,3023.4,3022.5,8.122]
[1763418148383,24.8911,3023.3,3022.6,8.122]
[1763418148585,12.0,3023.3,3022.6,3.308]
[1763418148784,12.01486671,3023.3,3022.7,8.122]
[1763418149191,12.00495557,3023.3,3022.7,11.4292]
[1763418149385,12.00495557,3023.3,3022.7,3.3072]
[1763418149582,12.0,3023.2,3022.8,8.121]
[1763418150491,0.01486671,3023.3,3022.8,8.121]
[1763418150492,0.00495557,3023.3,3022.9,3.3072]
[1763418150686,12.00375557,3023.3,3022.9,3.3072]
[1763418150888,0.00495557,3023.3,3023.0,3.3072]
[1763418151082,12.00375557,3023.3,3022.9,3.3072]
[1763418151485,12.00375557,3023.3,3023.0,3.3072]
[1763418151794,0.9464,3025.8,3023.0,7.6540136]
[1763418151979,11.9988,3025.1,3023.4,1.15305434]
[1763418152182,11.9988,3025.1,3023.7,1.15305434]
[1763418152383,12.8911,3024.9,3023.9,1.15305434]
[1763418152582,11.9988,3025.1,3023.9,1.15305434]
[1763418152792,0.00495557,3024.7,3024.1,0.00495557]
[1763418153691,0.00495557,3024.7,3024.2,3.3064]
[1763418153888,12.00375557,3024.7,3024.2,40.8]
[1763418154190,12.00375557,3024.7,3024.3,1.15305434]
[1763418154690,12.00375557,3024.7,3024.4,4.45865434]
[1763418154891,12.00375557,3024.7,3024.5,8.119]
[1763418155192,12.00375557,3024.7,3024.5,11.4246]
[1763418155388,12.00375557,3024.7,3024.6,3.3056]
[1763418155793,12.00375557,3024.7,3024.6,11.4246]
[1763418156088,12.00375557,3024.7,3024.6,11.4226]
[1763418156292,1.4908,3024.5,3023.8,11.912]
[1763418156490,1.4908,3023.9,3023.8,11.912]
[1763418156692,14.3819,3023.9,3022.7,2.33147989]
[1763418156899,9.09538447,3023.8,3022.8,47.928]
[1763418157091,12.8911,3023.6,3022.8,47.928]
[1763418157293,9.09538447,3023.7,3022.6,0.00246036]
[1763418157497,0.9464,3023.4,3022.9,0.00495557]
[1763418157694,1.48281,3023.4,3022.9,0.00495557]
[1763418158000,12.8911,3023.0,3022.9,0.00495557]
[1763418158199,12.90444969,3023.0,3022.9,0.00495557]
[1763418158395,21.99983416,3023.0,3022.9,8.10495557]
[1763418158694,21.98992302,3023.0,3022.9,8.12495557]
[1763418158997,12.89453855,3023.0,3022.9,8.12495557]
[1763418159198,12.90444969,3023.0,3022.9,8.12495557]
[1763418159698,12.89453855,3023.0,3022.9,8.12495557]
[1763418160293,21.98992302,3023.0,3022.9,8.12495557]
[1763418160590,21.98992302,3023.0,3022.9,0.00495557]
[1763418160789,21.99983416,3023.0,3022.9,8.12295557]
[1763418161394,23.49063416,3023.0,3022.9,8.12295557]
[1763418161597,23.48072302,3023.0,3022.9,8.12295557]
[1763418161803,23.49063416,3023.0,3022.9,8.12295557]
[1763418162514,23.49063416,3023.0,3022.9,0.00495557]
[1763418162805,23.48072302,3023.0,3022.9,8.12095557]
[1763418164602,9.09882302,3023.0,3022.9,11.42895557]
[1763418164795,8.6949614,3023.0,3022.9,11.42895557]
[1763418165794,8.69834801,3023.0,3022.9,11.42895557]
[1763418166008,8.70825915,3023.0,3022.9,8.12095557]
[1763418166502,8.70825915,3023.0,3022.9,0.00495557]
[1763418166709,8.69834801,3023.0,3022.9,11.42595557]
[1763418166910,8.70825915,3023.0,3022.9,8.11795557]
[1763418167107,23.08024801,3023.0,3022.9,0.00495557]
[1763418167308,23.09015915,3023.0,3022.9,8.11795557]
[1763418167704,23.08024801,3023.0,3022.9,8.11795557]
[1763418167905,23.09015915,3023.0,3022.9,8.11795557]
[1763418168407,23.08024801,3023.0,3022.9,8.11795557]
[1763418169211,23.09015915,3023.0,3022.9,8.11795557]
[1763418169818,0.9464,3022.2,3021.9,0.26374398]
[1763418170003,0.9464,3022.2,3021.3,2.33147989]
[1763418170206,0.9464,3022.2,3021.4,20.026]
[1763418170207,21.57864547,3022.1,3021.4,20.026]
[1763418170407,21.57864547,3022.1,3021.5,40.8]
[1763418170602,12.8911,3022.0,3021.5,44.1088]
[1763418170905,8.68754547,3022.1,3021.6,11.4188]
[1763418170906,8.69250931,3022.1,3021.6,11.4188]
[1763418171106,12.8911,3022.0,3021.6,11.4188]
[1763418171312,12.8911,3022.0,3021.7,3.3088]
[1763418171510,12.8911,3021.9,3021.7,3.3088]
[1763418171819,12.8911,3022.0,3021.7,3.3088]
[1763418172010,0.00496384,3022.1,3021.7,3.3088]
[1763418172208,0.00496384,3022.1,3021.8,8.11]
[1763418172209,12.8911,3022.0,3021.8,8.11]
[1763418172614,0.00496384,3022.1,3021.9,11.4188]
[1763418172816,8.69250931,3022.1,3022.0,8.11]
[1763418173317,8.69250931,3022.1,3022.0,11.4188]
[1763418173514,21.58360931,3022.1,3022.0,11.4188]
[1763418174314,12.89606384,3022.1,3022.0,11.4188]
[1763418174513,12.89606384,3022.1,3022.0,8.11]
[1763418174711,21.18612108,3022.1,3022.0,3.3088]
[1763418174909,21.18612108,3022.1,3021.5,43.39874067]
[1763418175110,21.18612108,3022.0,3021.6,8.108]
[1763418175314,8.68754547,3022.1,3021.6,8.108]
[1763418175517,12.49857561,3022.4,3021.6,8.108]
[1763418175713,0.00496384,3022.3,3021.6,8.108]
[1763418176118,0.00496384,3022.3,3021.7,8.108]
[1763418176119,9.63394547,3022.2,3021.7,8.108]
[1763418176317,22.13252108,3022.2,3021.9,1.74028531]
[1763418176618,21.18612108,3022.1,3021.9,1.74028531]
[1763418176918,21.18612108,3022.1,3021.9,5.04908531]
[1763418177115,21.18612108,3022.1,3021.9,1.74028531]
[1763418177116,12.49857561,3022.0,3021.9,1.74028531]
[1763418177313,21.18612108,3022.0,3021.9,1.74028531]
[1763418177513,21.19603222,3022.0,3021.9,1.74028531]
[1763418177721,21.18612108,3022.0,3021.9,5.04908531]
[1763418178020,21.19603222,3022.0,3021.9,1.74028531]
[1763418178218,21.18612108,3022.0,3021.9,3.3088]
[1763418178820,21.19603222,3022.0,3021.7,8.108]
[1763418179117,21.18612108,3021.9,3021.7,10.43947989]
[1763418179720,12.49857561,3021.8,3021.7,13.74827989]
[1763418179920,12.49857561,3021.8,3021.7,10.43947989]
[1763418180121,12.50848675,3021.8,3021.7,10.43947989]
[1763418180724,12.49857561,3021.8,3021.7,13.74827989]